Workbook

Sheet Fasi 1-5
B1: Fase 1 | C1: Piano Investimenti | D1: Importo | E1: Ammortamenti Annui
C2: Brevetti | D2: 500000 | E2: =+D2/20 -> 25000
C3: Impianti | D3: 1000000 | E3: =+D3/10 -> 100000
C4: Attrezzature | D4: 800000 | E4: =+D4/12 -> 66666.66667
B5: Nuovo Investimento | C5: Autocarri | D5: 100000 | E5: =+D5/4 -> 25000
C6: Totale | D6: =SUM(D2:D5) -> 2400000 | E6: =SUM(E2:E5) -> 216666.6667
D7: Rata | E7: Quota Capitale | F7: Interessi
B8: 1° Finanziamento | C8: Finanziamento (7 anni, 5%)
B9: 2° Finanziamento | C9: Finanziamento (4 anni, 5%)
B11: Fase 2 | C11: Costi Fissi Industriali | D11: Importo
C12: Costo del lavoro | D12: 220000
C13: Utenze | D13: 12000
C14: Manutenzioni | D14: 55000
C15: Assicurazioni | D15: 25000
C16: Consulenze | D16: 28000
C17: Totale | D17: =SUM(D12:D16) -> 340000
B19: Fase 3 | C19: Costi Variabili Unitari | D19: Importo | E19: Incidenza sul prezzo di vendita
C20: Ricavo per Metro Tessuto Greggio | D20: 3.5
C21: Costo del Filato | D21: 2.5
C22: Costo dell'energia | D22: 0.28
C23: Provvigioni | D23: 0.28
C24: Imballaggi | D24: 0.1
C25: Tot. Costi Variabili | D25: =SUM(D21:D24) -> 3.16
C26: M.d.C. Unitario | D26: =+D20-D25 -> 0.34
B29: Fase 3b-3c | C29: Margine di Produzione | F29: Incidenza su magazzino M.P.
C30: Costo Industriale pieno per Metro T.G. | D30: 3.15 | F30: Incidenza su 100%
C31: =+C21 -> Costo del Filato | D31: =+D21 -> 2.5
C32: =+C22 -> Costo dell'energia | D32: =+D22 -> 0.28
C33: =+C24 -> Imballaggi | D33: =+D24 -> 0.1
C34: =+C25 -> Tot. Costi Variabili | D34: =SUM(D31:D33) -> 2.88
C35: M.d.P. Unitario | D35: =+D30-D34 -> 0.27
D37: PESI
C38: Ponderazione Margini per calcolo Valore della Produzione di Break Even | D38: 0.8 | E38: =+(D49-D56+'Fase 6'!D11)/D49 ->  | F38: =+D38-E38 -> 
D39: =100%-D38 -> 0.2
C40: M.d.c. Ponderato | D40: =+D38*E26+E35*D39 -> 0
B42: Fase 4 | C42: Costi Fissi Operativi
B43: Stima primo break even | C43: Finanziamento Piano Investimenti
C44: Interessi Passivi a breve (Fase 7b) | E44: =-'Fase 7-7c'!D25 -> 0 | F44: =+D44-E44 -> 0
B45: Flusso Fiscale | C45: Imposte Anno 1
C46: Acconto = 100% Imposte Anno 1
B47: Uscite Finanziarie Fisse | C47: Somma Flussi in Uscita
B49: Valore della Produzione | C49: Break Even Finanziario | E49: =+"(Flussi in uscita/M.d.C.% = "&TEXT(D40,"0,00%")&")" -> (Flussi in uscita/M.d.C.% = 0,00%)
B51: Fase 5
B52: Stima CCNC Attivo | C52: Acquisti M.P. Giornalieri
C53: Magazzino Mat. Prima | E53: 40 | F53: gg
C55: Costo del Venduto Giornaliero
C56: Magazzino P. Finito | E56: 30 | F56: gg
C58: Fatturato Giornaliero | E58: Fatturato/365
C59: Crediti V/Clienti | E59: 120 | F59: gg
C61: Acquisti Giornalieri
B62: Stima CCNC Passivo | C62: Debiti V/Fornitori | E62: 120 | F62: gg
C64: CCNC | D64: =+D59+D53+D56-D62 -> 0

Sheet IVA
B1: Momento 0
B2: Aliquota Iva in vigore | C2: 0.22
B3: Credito Anno 1 | C3: =+'Fase 6'!D12 -> 682929.5144
B4: Iva su Investimenti | D4: a Credito
C6: 1 | D6: 2 | E6: 3 | F6: 4 | G6: 5 | H6: 6 | I6: 7 | J6: 8 | K6: 9 | L6: 10 | M6: 11 | N6: 12
B7: Sviluppo Iva Mensile
B8: Credito | C8: =+(('Fasi 1-5'!D17-'Fasi 1-5'!D15-'Fasi 1-5'!D12)/12*C2)-(SUM('Fase 7-7c'!D7:D10)/12*C2) -> 1741.666667 | D8: =+C8 -> 1741.666667 | E8: =+D8 -> 1741.666667 | F8: 1741.666667 | G8: 1741.666667 | H8: 1741.666667 | I8: 1741.666667 | J8: 1741.666667 | K8: 1741.666667 | L8: 1741.666667 | M8: 1741.666667 | N8: 1741.666667
B9: Debito | C9: =+'Fase 7-7c'!D3/12*C2 -> 0 | D9: =+C9 -> 0 | E9: 0 | F9: 0 | G9: 0 | H9: 0 | I9: 0 | J9: 0 | K9: 0 | L9: 0 | M9: 0 | N9: 0
B11: Saldo a Credito | C11: =+C4+C3+C8-C9 -> 684671.1811 | D11: =+C11+D8-D9-D10 -> 686412.8478 | E11: 688154.5144 | F11: 689896.1811 | G11: 691637.8478 | H11: =+G11+H8-H9-H10 -> 693379.5144 | I11: =+H11+I8-I9-I10 -> 695121.1811 | J11: 696862.8478 | K11: 698604.5144 | L11: 700346.1811 | M11: 702087.8478 | N11: 703829.5144

Sheet Fase 6
B1: Fase 6 | C1: Investimenti e Coperture al Momento 1
C3: Attivo Immobilizzato | D3: 2108333.333 | F3: Posizione Finanziaria Netta | G3: 5212788.577
C4: Brevetti | D4: 475000 | F4: Pos. Finanziaria Netta a M/L | G4: 2017514.418
C5: Impianti | D5: 900000 | F5: Pos. Finanziaria Netta a Breve | G5: 3195274.16
C6: Attrezzature | D6: 733333.3333
C8: Capitale Circolante | D8: 3695274.16 | F8: Posizione Tributaria Netta | G8: 35757.55808
C9: Crediti V/Clienti | D9: 3599726.747
C10: Magazzino Mat. Prima | D10: 881642.4451 | F10: Mezzi Propri | G10: 555061.3577
C11: Magazzino P. Finito | D11: 697224.1153 | F11: Equity | G11: 500000
C12: Credito Iva | D12: 682929.5144 | F12: Utile dell'esercizio | G12: 55061.35768
C13: Debiti V/Fornitori | D13: -2166248.662
C14: Totale Investimenti | D14: 5803607.493 | F14: Totale Coperture | G14: 5803607.493

Sheet Fase 7-7c
B1: Fase 7a | C1: Conto Economico al Momento 2
C3: Fatturato
C4: Variazione magazzino P.F.
C5: Valore della Produzione
C7: =+'Fasi 1-5'!C21 -> Costo del Filato
C8: =+'Fasi 1-5'!C22 -> Costo dell'energia
C9: =+'Fasi 1-5'!C23 -> Provvigioni
C10: =+'Fasi 1-5'!C24 -> Imballaggi
C11: Variazione magazzino M.P.
C12: Costi Variabili
C13: =+'Fasi 1-5'!C12 -> Costo del lavoro
C14: =+'Fasi 1-5'!C13 -> Utenze
C15: =+'Fasi 1-5'!C14 -> Manutenzioni
C16: =+'Fasi 1-5'!C15 -> Assicurazioni
C17: =+'Fasi 1-5'!C16 -> Consulenze
C18: Costi Fissi
C19: EBITDA/MOL
C20: Ammortamenti
C21: EBIT/Red.Operativo
C22: Interessi passivi a lungo
B25: Fase 7b | C25: Interessi passivi a breve | E25: 0.05 | F25: su PFN a Breve Iniziale
A26: (si veda foglio dedicato) | C26: Utile Ante Imposte
B29: Fase 7c | C29: Imposte | F29: IRES | G29: 0.24
C30: Utile Netto | F30: IRAP | G30: 0.039

Sheet Fase 7b
B3: Proxy PFN Finale
A4: 1 | B4: PFN Iniziale
B6: Flussi di Cassa
B7: Mol
B8: CCNC Iniziale
B9: CCNC Finale
B10: Delta CCNC
A11: A | B11: Cash Flow operativo | C11: =+C7+C10 -> 0
B12: Ammortamenti
B13: Investimenti Netti Iniziali
B14: Investimenti Netti Finali
B15: Delta Investimenti
A16: B | B16: Flusso per Investimenti | C16: =+C12-C15 -> 0
B17: Flusso per Debito a Medio Lungo
B18: Erogazioni a medio lungo
A19: C | B19: Flusso netto debito a M/L | C19: =+C17+C18 -> 0
A20: D | B20: Cash Flow Fiscale
A21: E | B21: Flusso Equity
A23: 2 = A+B+C+D | B23: Flussi in uscita | C23: =+C11+C16+C19+C20 -> 0
A25: 1+2 | B25: PFN a Breve Finale pre Oneri Finanziari | C25: =+C4-C23 -> 0
B27: Oneri Finanziari | C27: =+AVERAGE(C25,C4)*D27 -> 0 | D27: 0.05
B29: PFN a Breve Finale post Oneri Finanziari | C29: =+C25+C27 -> 0

Sheet Fase 8
B1: Fase 8 | C1: Investimenti e Coperture al Momento 2
C3: Attivo Immobilizzato | D3: =+SUM(D4:D7) -> 0 | F3: Posizione Finanziaria Netta | G3: =SUM(G4:G5) -> 0
C4: =+'Fasi 1-5'!C2 -> Brevetti | F4: Pos. Finanziaria Netta a M/L
C5: =+'Fasi 1-5'!C3 -> Impianti | F5: Pos. Finanziaria Netta a Breve
C6: =+'Fasi 1-5'!C4 -> Attrezzature
C7: =+'Fasi 1-5'!C5 -> Autocarri
C9: =+'Fase 6'!C8 -> Capitale Circolante | D9: =SUM(D10:D14) -> 0 | F9: Posizione Tributaria Netta
C10: =+'Fase 6'!C9 -> Crediti V/Clienti
C11: =+'Fase 6'!C10 -> Magazzino Mat. Prima | F11: Mezzi Propri | G11: =+G12+G13 -> 0
C12: =+'Fase 6'!C11 -> Magazzino P. Finito | F12: Equity
C13: Credito Iva | F13: Utile dell'esercizio
C14: =+'Fase 6'!C13 -> Debiti V/Fornitori
C15: Totale Investimenti | D15: =+D3+D9 -> 0 | F15: Totale Coperture | G15: =+G9+G11+G3 -> 0

Sheet Fase 9
B1: Fase 9 | C1: Rendiconto Finanziario (Determ. Cash Flow)
D2: Anno 2
C4: EBITDA/M.O.L.
C5: CCNC Iniziale
C6: CCNC Finale
C7: Variazione Circolante
C9: CASH FLOW OPERATIVO | D9: =+D4-D7 -> 0
C11: Ammortamenti
C12: Investimenti Iniziali
C13: Investimenti Finali
C14: Investimenti a patrimonio
C15: Flusso di Cassa per investimenti | D15: =+D14-D11 -> 0
C17: CASH FLOW DISPONIBILE | D17: =+D9-D15 -> 0
C19: Interessi Passivi netti
C20: PFN Iniziale
C21: PFN Finale
C22: Variazione dell'indebitamento finanziario
C23: Cash Flow per il servizio del debito | D23: =+D22+D19 -> 0
C25: Cash Flow per la gestione straordinaria
C27: Imposte d'esercizio
C28: PTN Iniziale
C29: PTN Finale
C30: Variazione debiti fiscali
C31: Cash Flow Fiscale | D31: =+D27+D30 -> 0
C33: Utile
C34: Equity Iniziale
C35: Equity Finale
C36: Variazione dei mezzi propri
C37: CASH FLOW PER LA PROPRIETA' | D37: =D36-D33 -> 0

Sheet Fase 10
B2: Fase 10 | C2: MdC | D2: =+'Fasi 1-5'!E26 -> 0
C3: Costi Fissi Operativi | D3: =+'Fasi 1-5'!D42 -> 0
C4: Valore della Produzione | D4: =+'Fasi 1-5'!D49 -> 0
C5: Interessi Passivi | D5: =+'Fase 7-7c'!D22+'Fase 7-7c'!D25 -> 0
C6: PFN | D6: =+'Fase 8'!G3 -> 0
